[Event "GER-ch Youth-U12 2024"]
[Site "Willingen"]
[Date "2024.05.22"]
[Round "6"]
[White "Doeding, Alexander"]
[Black "Yozgyur, Ediz"]
[Result "0-1"]
[ECO "B22"]
[WhiteElo "1633"]
[BlackElo "1789"]
[Annotator "NA RC"]
[PlyCount "148"]
[EventDate "2022.06.05"]
[EventType "swiss"]
[EventRounds "9"]
[EventCountry "GER"]
[SourceTitle "playchess.com"]
[Source "ChessBase"]
[SourceQuality "1"]
[TimeControl "40/4500+30:900+30"]

1. e4 {[%emt 0:00:00]} c5 {[%emt 0:00:00]} 2. c3 {[%emt 0:00:00]} d5 {[%emt 0:00:00]} 3. exd5 {[%emt 0:00:00]} Qxd5 {[%emt 0:00:00]} 4. d4 {[%emt 0:00:00]} g6 {[%emt 0:00:00]} 5. Be3 {[%emt 0:00:00]} cxd4 {[%emt 0:00:00]} 6. cxd4 {[%emt 0:00:00]} Bg7 {[%emt 0:00:00]} 7. Nc3 {[%emt 0:00:00]} Qd8 {[%emt 0:00:00]} 8. Bc4 {[%emt 0:00:00]} Bf5 {[%emt 0:00:00]} 9. Qb3 {[%emt 0:14:09]} e6 {[%emt 0:04:14]} 10. Qb4 {[%emt 0:04:53]} b6 11. Qxb6 {[%emt 0:00:32]} Nd7 {[%emt 0:03:03]} 12. Qb7 {[%emt 0:12:17]} Rb8 {[%emt 0:07:14]} 13. Nb5 {[%emt 0:05:42]} Qe7 {[%emt 0:02:32]} 14. Qxa7 {[%emt 0:07:32]} e5 {[%emt 0:06:02]} 15. a3 {[%emt 0:04:26]} Nh6 {[%emt 0:07:56]} 16. d5 {[%emt 0:03:28]} Qf6 {[%emt 0:06:04]} 17. Bd2 Qh4 {[%emt 0:00:00]} 18. Be2 {[%emt 0:04:45]} O-O {[%emt 0:00:00]} 19. h3 {[%emt 0:02:21]} Qe4 {[%emt 0:00:00]} 20. Nc3 {[%emt 0:03:24]} Qc2 {[%emt 0:03:39]} 21. Rc1 {[%emt 0:06:07]} Qxb2 {[%emt 0:01:45]} 22. g4 {[%emt 0:01:23]} Rb7 {[%emt 0:01:12]} 23. Qe3 {[%emt 0:00:49]} Bc2 {[%emt 0:01:16]} 24. Nf3 {[%emt 0:00:36]} e4 {[%emt 0:05:47]} 25. Nd4 {[%emt 0:00:24]} Bd3 {[%emt 0:11:47]} 26. Bxd3 {[%emt 0:00:44]} exd3 {[%emt 0:00:07]} 27. O-O {[%emt 0:00:55]} Bxd4 {[%emt 0:01:15]} 28. Qxh6 {[%emt 0:00:33]} Bg7 {[%emt 0:01:28]} 29. Qe3 {[%emt 0:00:33]} Qxa3 {[%emt 0:01:19]} 30. Qxd3 {[%emt 0:01:55]} Ne5 {[%emt 0:00:54]} 31. Qe2 {[%emt 0:00:41]} Rb2 {[%emt 0:00:31]} 32. Rfe1 {[%emt 0:03:11]} Rxd2 {[%emt 0:00:30]} 33. Qe4 {[%emt 0:01:43]} Nd3 {[%emt 0:01:55]} 34. Nb1 {[%emt 0:02:10]} Qa5 {[%emt 0:02:01]} 35. Nxd2 {[%emt 0:02:42]} Nxc1 {[%emt 0:00:19]} 36. Nc4 {[%emt 0:00:47]} Qc3 {[%emt 0:02:45]} 37. Kg2 {[%emt 0:01:51]} Nd3 {[%emt 0:07:25]} 38. Re3 {[%emt 0:01:10]} Nc5 {[%emt 0:00:11]} 39. Qf4 {[%emt 0:00:28]} Qd4 {[%emt 0:01:18]} 40. Qxd4 {[%emt 0:01:36]} Bxd4 {[%emt 0:00:07]} 41. Re1 {[%emt 0:15:07]} Rd8 {[%emt 0:15:48]} 42. Rd1 {[%emt 0:01:16]} Rxd5 {[%emt 0:00:50]} 43. Ne3 {[%emt 0:00:28]} Rd7 {[%emt 0:00:39]} 44. Nc4 {[%emt 0:01:05]} Rd8 {[%emt 0:00:48]} 45. Ne5 {[%emt 0:00:38]} Rd6 {[%emt 0:01:25]} 46. Nc4 {[%emt 0:00:37]} Rd8 {[%emt 0:00:34]} 47. Ne5 {[%emt 0:00:11]} Ne6 {[%emt 0:00:13]} 48. Nc6 {[%emt 0:00:17]} Rd6 {[%emt 0:00:55]} 49. Nb4 {[%emt 0:00:34]} Bc5 {[%emt 0:00:38]} 50. Rxd6 {[%emt 0:00:00]} Bxd6 {[%emt 0:00:00]} 51. Nd5 {[%emt 0:00:00]} Nf4+ {[%emt 0:00:00]} 52. Nxf4 {[%emt 0:00:00]} Bxf4 {[%emt 0:00:00]} 53. Kf3 {[%emt 0:00:00]} Bb8 {[%emt 0:00:00]} 54. Ke3 {[%emt 0:00:00]} Kg7 {[%emt 0:00:00]} 55. f4 {[%emt 0:00:00]} Kf6 {[%emt 0:00:00]} 56. h4 {[%emt 0:00:00]} h5 {[%emt 0:00:00]} 57. Kf3 {[%emt 0:00:00]} Ba7 {[%emt 0:00:00]} 58. Kg3 {[%emt 0:00:00]} Bc5 {[%emt 0:00:00]} 59. Kf3 {[%emt 0:00:00]} Bb4 {[%emt 0:00:00]} 60. Kg3 {[%emt 0:00:00]} Be1+ {[%emt 0:00:00]} 61. Kh3 {[%emt 0:00:00]} Bf2 {[%emt 0:00:00]} 62. f5 {[%emt 0:00:00]} gxf5 {[%emt 0:00:00]} 63. gxh5 {[%emt 0:00:00]} Kg7 {[%emt 0:00:00]} 64. Kg2 {[%emt 0:00:00]} Bxh4 {[%emt 0:00:00]} 65. Kf3 {[%emt 0:00:00]} Bg5 {[%emt 0:00:00]} 66. Kg3 {[%emt 0:00:00]} Kh6 {[%emt 0:00:00]} 67. Kf3 {[%emt 0:00:00]} Kxh5 {[%emt 0:00:00]} 68. Kg3 {[%emt 0:00:00]} f4+ {[%emt 0:00:00]} 69. Kf3 {[%emt 0:00:00]} Kh4 {[%emt 0:00:00]} 70. Kf2 {[%emt 0:00:00]} Kg4 {[%emt 0:00:00]} 71. Kg2 {[%emt 0:00:00]} f3+ {[%emt 0:00:00]} 72. Kf1 {[%emt 0:00:00]} Kg3 {[%emt 0:00:00]} 73. Kg1 {[%emt 0:00:00]} f2+ {[%emt 0:00:00]} 74. Kf1 {[%emt 0:00:00]} Bd8 {[%emt 0:00:00]} 0-1

[Event "GER-ch Youth-U12 2024"]
[Site "Willingen"]
[Date "2024.05.22"]
[Round "6"]
[White "Heins, Simon"]
[Black "Noll, Raphael"]
[Result "1-0"]
[ECO "C29"]
[WhiteElo "1626"]
[BlackElo "1775"]
[Annotator "NA RC"]
[PlyCount "103"]
[EventDate "2022.06.05"]
[EventType "swiss"]
[EventRounds "9"]
[EventCountry "GER"]
[SourceTitle "playchess.com"]
[Source "ChessBase"]
[SourceQuality "1"]
[TimeControl "40/4500+30:900+30"]

1. e4 {[%emt 0:00:00]} e5 {[%emt 0:00:00]} 2. Nc3 {[%emt 0:00:00]} Nf6 {[%emt 0:00:00]} 3. f4 {[%emt 0:00:00]} d5 {[%emt 0:00:00]} 4. fxe5 {[%emt 0:00:00]} Nxe4 {[%emt 0:00:00]} 5. Nf3 {[%emt 0:00:00]} Bb4 {[%emt 0:00:00]} 6. Be2 {[%emt 0:00:00]} Nc6 {[%emt 0:04:43]} 7. O-O {[%emt 0:00:00]} O-O {[%emt 0:03:04]} 8. d4 {[%emt 0:01:15]} Bxc3 {[%emt 0:07:47]} 9. bxc3 {[%emt 0:00:25]} Nxc3 {[%emt 0:01:26]} 10. Qd3 {[%emt 0:00:43]} Nxe2+ {[%emt 0:05:11]} 11. Qxe2 {[%emt 0:00:07]} Bg4 {[%emt 0:00:16]} 12. c3 {[%emt 0:00:19]} f6 {[%emt 0:01:51]} 13. exf6 {[%emt 0:01:39]} Qxf6 {[%emt 0:02:56]} 14. Ba3 {[%emt 0:00:53]} Rfd8 {[%emt 0:03:38]} 15. Qb5 {[%emt 0:01:14]} Rab8 {[%emt 0:01:37]} 16. Rae1 {[%emt 0:04:07]} Bf5 {[%emt 0:08:11]} 17. Ne5 {[%emt 0:07:32]} Nxe5 {[%emt 0:14:55]} 18. Rxe5 {[%emt 0:00:13]} c6 {[%emt 0:00:21]} 19. Qe2 {[%emt 0:01:13]} g6 {[%emt 0:01:09]} 20. Be7 {[%emt 0:00:21]} Qg7 {[%emt 0:02:00]} 21. Bxd8 {[%emt 0:00:05]} Rxd8 {[%emt 0:00:05]} 22. Re8+ {[%emt 0:00:06]} Rxe8 {[%emt 0:00:08]} 23. Qxe8+ {[%emt 0:00:02]} Qf8 {[%emt 0:00:01]} 24. Qxf8+ {[%emt 0:00:20]} Kxf8 {[%emt 0:00:01]} 25. g4 {[%emt 0:00:01]} Kg7 {[%emt 0:00:01]} 26. gxf5 {[%emt 0:00:26]} gxf5 {[%emt 0:00:10]} 27. Rxf5 {[%emt 0:00:06]} b6 {[%emt 0:00:04]} 28. Re5 {[%emt 0:00:09]} Kf7 {[%emt 0:00:07]} 29. a4 {[%emt 0:00:38]} a6 {[%emt 0:00:07]} 30. Re1 {[%emt 0:00:10]} c5 {[%emt 0:00:08]} 31. dxc5 {[%emt 0:00:04]} bxc5 {[%emt 0:00:04]} 32. Re5 {[%emt 0:00:08]} d4 {[%emt 0:00:07]} 33. cxd4 {[%emt 0:00:04]} cxd4 {[%emt 0:00:04]} 34. Rd5 {[%emt 0:00:05]} Ke6 {[%emt 0:00:03]} 35. Rxd4 {[%emt 0:00:05]} a5 {[%emt 0:00:01]} 36. Rh4 {[%emt 0:00:08]} Kd5 {[%emt 0:00:06]} 37. Rxh7 {[%emt 0:00:06]} Kc4 {[%emt 0:00:03]} 38. h4 {[%emt 0:00:07]} Kd5 {[%emt 0:00:04]} 39. Rh5+ {[%emt 0:00:05]} Ke6 {[%emt 0:00:02]} 40. Rxa5 {[%emt 0:00:08]} Kf6 {[%emt 0:00:02]} 41. Rb5 {[%emt 0:15:10]} Ke6 {[%emt 0:15:04]} 42. a5 {[%emt 0:00:04]} Kd6 {[%emt 0:00:03]} 43. h5 {[%emt 0:00:05]} Kc6 {[%emt 0:00:02]} 44. Rb1 {[%emt 0:00:08]} Kc7 {[%emt 0:00:04]} 45. h6 {[%emt 0:00:04]} Kd6 {[%emt 0:00:02]} 46. a6 {[%emt 0:00:07]} Ke7 {[%emt 0:00:04]} 47. h7 {[%emt 0:00:07]} Kf7 {[%emt 0:00:03]} 48. h8=Q {[%emt 0:00:08]} Ke6 {[%emt 0:00:01]} 49. a7 {[%emt 0:00:11]} Kd6 {[%emt 0:00:04]} 50. a8=Q {[%emt 0:00:07]} Kd7 {[%emt 0:00:05]} 51. Rd1+ {[%emt 0:00:15]} Ke7 {[%emt 0:00:09]} 52. Qae8# {[%emt 0:01:17]} 1-0

[Event "GER-ch Youth-U12 2024"]
[Site "Willingen"]
[Date "2024.05.22"]
[Round "6"]
[White "Schmidt, Jossip"]
[Black "Fischermann, Simon"]
[Result "0-1"]
[ECO "C50"]
[WhiteElo "1603"]
[BlackElo "1789"]
[Annotator "NA RC"]
[PlyCount "60"]
[EventDate "2022.06.05"]
[EventType "swiss"]
[EventRounds "9"]
[EventCountry "GER"]
[SourceTitle "playchess.com"]
[Source "ChessBase"]
[SourceQuality "1"]
[TimeControl "40/4500+30:900+30"]

1. e4 {[%emt 0:00:00]} e5 {[%emt 0:00:00]} 2. Nf3 {[%emt 0:00:00]} Nc6 {[%emt 0:00:00]} 3. Bc4 {[%emt 0:00:00]} Nf6 {[%emt 0:00:00]} 4. d3 {[%emt 0:00:00]} Bc5 {[%emt 0:00:00]} 5. Nc3 {[%emt 0:00:00]} a6 {[%emt 0:00:00]} 6. Bg5 {[%emt 0:00:00]} O-O {[%emt 0:00:00]} 7. Nd5 {[%emt 0:00:00]} Be7 {[%emt 0:00:00]} 8. Bxf6 {[%emt 0:00:00]} Bxf6 {[%emt 0:00:00]} 9. g4 {[%emt 0:00:00]} d6 {[%emt 0:00:00]} 10. h3 {[%emt 0:00:27]} Be6 {[%emt 0:00:00]} 11. Qd2 {[%emt 0:02:49]} Bxd5 {[%emt 0:02:39]} 12. Bxd5 {[%emt 0:00:49]} Re8 {[%emt 0:08:45]} 13. h4 {[%emt 0:02:07]} Qd7 {[%emt 0:05:48]} 14. g5 {[%emt 0:01:31]} Bd8 {[%emt 0:04:57]} 15. O-O-O {[%emt 0:00:47]} Qg4 {[%emt 0:05:20]} 16. Qe2 {[%emt 0:01:21]} Nb4 {[%emt 0:04:21]} 17. Bxb7 {[%emt 0:01:58]} Nxa2+ {[%emt 0:00:40]} 18. Kb1 {[%emt 0:00:21]} Nc3+ {[%emt 0:00:42]} 19. bxc3 {[%emt 0:00:24]} Rb8 {[%emt 0:00:01]} 20. Qe3 {[%emt 0:01:15]} Rxb7+ {[%emt 0:00:48]} 21. Kc1 {[%emt 0:00:13]} c5 {[%emt 0:02:04]} 22. h5 {[%emt 0:01:30]} Ba5 {[%emt 0:02:55]} 23. Kd2 {[%emt 0:01:08]} Qd7 {[%emt 0:01:16]} 24. g6 {[%emt 0:01:12]} fxg6 {[%emt 0:01:04]} 25. h6 {[%emt 0:00:53]} Qc7 {[%emt 0:00:57]} 26. hxg7 {[%emt 0:00:52]} Bxc3+ {[%emt 0:00:39]} 27. Kxc3 {[%emt 0:02:00]} Qa5+ {[%emt 0:00:04]} 28. Kc4 {[%emt 0:00:37]} Rb4+ {[%emt 0:00:13]} 29. Kd5 {[%emt 0:00:12]} Rd4+ {[%emt 0:00:01]} 30. Nxd4 {[%emt 0:00:22]} cxd4+ {[%emt 0:00:07]} 0-1

[Event "GER-ch Youth-U12 2024"]
[Site "Willingen"]
[Date "2024.05.22"]
[Round "6"]
[White "Franke, Moritz"]
[Black "Heitmann, Erik"]
[Result "0-1"]
[ECO "B01"]
[WhiteElo "1597"]
[BlackElo "1644"]
[Annotator "NA"]
[PlyCount "123"]
[EventDate "2022.06.05"]
[EventType "swiss"]
[EventRounds "9"]
[EventCountry "GER"]
[SourceTitle "playchess.com"]
[Source "ChessBase"]
[SourceQuality "1"]
[TimeControl "40/4500+30:900+30"]

1. e4 {[%emt 0:00:00]} d5 {[%emt 0:00:00]} 2. exd5 {[%emt 0:00:00]} Qxd5 {[%emt 0:00:00]} 3. Nc3 {[%emt 0:00:00]} Qa5 {[%emt 0:00:00]} 4. d4 {[%emt 0:00:00]} c6 {[%emt 0:00:00]} 5. Nf3 {[%emt 0:00:00]} Bf5 {[%emt 0:00:00]} 6. Bc4 {[%emt 0:00:00]} e6 {[%emt 0:00:00]} 7. Bd2 {[%emt 0:00:00]} Qc7 {[%emt 0:02:05]} 8. O-O {[%emt 0:00:00]} Bd6 {[%emt 0:00:00]} 9. Re1 {[%emt 0:00:00]} Ne7 {[%emt 0:00:00]} 10. Rc1 {[%emt 0:00:00]} O-O {[%emt 0:00:00]} 11. Bb3 {[%emt 0:00:00]} Nd7 {[%emt 0:00:00]} 12. Qe2 {[%emt 0:00:00]} b5 {[%emt 0:00:00]} 13. Ne4 {[%emt 0:01:11]} Bf4 {[%emt 0:00:48]} 14. Bxf4 {[%emt 0:01:41]} Qxf4 {[%emt 0:02:08]} 15. Qe3 {[%emt 0:00:44]} Qxe3 {[%emt 0:00:47]} 16. Rxe3 {[%emt 0:00:11]} Bxe4 {[%emt 0:00:27]} 17. Rxe4 {[%emt 0:00:13]} a5 {[%emt 0:02:46]} 18. a3 {[%emt 0:00:33]} Nf6 {[%emt 0:00:57]} 19. Re2 {[%emt 0:01:14]} a4 {[%emt 0:04:17]} 20. Ba2 {[%emt 0:01:30]} Rab8 {[%emt 0:04:48]} 21. c3 {[%emt 0:02:23]} Rfc8 {[%emt 0:01:14]} 22. h3 {[%emt 0:01:01]} Ng6 {[%emt 0:02:11]} 23. g3 {[%emt 0:02:04]} h5 {[%emt 0:07:57]} 24. Bb1 {[%emt 0:01:30]} Nf8 {[%emt 0:01:38]} 25. Ne5 {[%emt 0:02:42]} N8d7 {[%emt 0:00:38]} 26. Nxd7 {[%emt 0:01:56]} Nxd7 {[%emt 0:00:35]} 27. Ba2 {[%emt 0:02:25]} Kf8 {[%emt 0:01:38]} 28. Kg2 {[%emt 0:01:28]} g6 {[%emt 0:04:52]} 29. f4 {[%emt 0:02:31]} Rd8 {[%emt 0:01:56]} 30. Rd1 {[%emt 0:02:22]} Nb6 {[%emt 0:01:10]} 31. Kf3 {[%emt 0:02:11]} Nc4 {[%emt 0:02:59]} 32. Bxc4 {[%emt 0:01:38]} bxc4 {[%emt 0:00:13]} 33. Rb1 {[%emt 0:00:14]} Rb3 {[%emt 0:00:11]} 34. Re5 {[%emt 0:01:55]} Rdb8 {[%emt 0:00:51]} 35. Rc5 {[%emt 0:00:20]} Rxb2 {[%emt 0:03:57]} 36. Rxb2 {[%emt 0:02:22]} Rxb2 {[%emt 0:00:03]} 37. Rxc4 {[%emt 0:00:09]} Rb3 {[%emt 0:00:06]} 38. Rxa4 {[%emt 0:00:35]} Rxc3+ {[%emt 0:02:48]} 39. Kf2 {[%emt 0:00:52]} Ke7 {[%emt 0:01:01]} 40. Ra7+ {[%emt 0:00:14]} Kf6 {[%emt 0:00:09]} 41. a4 {[%emt 0:15:44]} h4 {[%emt 0:16:00]} 42. gxh4 {[%emt 0:00:52]} Rxh3 {[%emt 0:00:10]} 43. a5 {[%emt 0:00:35]} Rxh4 {[%emt 0:00:13]} 44. Kg3 {[%emt 0:00:26]} Rh5 {[%emt 0:00:39]} 45. a6 {[%emt 0:00:45]} Rd5 {[%emt 0:02:17]} 46. Rc7 {[%emt 0:00:47]} Rxd4 {[%emt 0:00:00]} 47. Rxc6 {[%emt 0:00:08]} Ra4 {[%emt 0:00:00]} 48. Kf3 {[%emt 0:00:33]} g5 {[%emt 0:00:50]} 49. fxg5+ {[%emt 0:00:11]} Kxg5 {[%emt 0:00:07]} 50. Rc7 {[%emt 0:00:17]} f6 {[%emt 0:03:40]} 51. Rc6 {[%emt 0:00:39]} Kf5 {[%emt 0:00:19]} 52. Rc5+ {[%emt 0:00:10]} e5 {[%emt 0:00:11]} 53. Rc6 {[%emt 0:00:05]} Ra3+ {[%emt 0:01:39]} 54. Kf2 {[%emt 0:01:10]} Kg5 {[%emt 0:00:24]} 55. Kg2 {[%emt 0:00:18]} f5 {[%emt 0:00:21]} 56. Rc5 {[%emt 0:00:03]} Kf4 {[%emt 0:01:04]} 57. Rc4+ {[%emt 0:00:10]} e4 {[%emt 0:00:19]} 58. Rc6 {[%emt 0:00:09]} Ke3 {[%emt 0:00:34]} 59. Rh6 {[%emt 0:00:26]} f4 {[%emt 0:00:39]} 60. Rf6 {[%emt 0:01:07]} f3+ {[%emt 0:01:12]} 61. Kg3 {[%emt 0:00:07]} Ke2 {[%emt 0:00:51]} 62. Re6 {[%emt 0:01:37]} 0-1

[Event "GER-ch Youth-U12 2024"]
[Site "Willingen"]
[Date "2024.05.22"]
[Round "6"]
[White "Rinke, Alexander"]
[Black "Schellinger, Florian"]
[Result "1-0"]
[ECO "C65"]
[WhiteElo "1596"]
[BlackElo "863"]
[Annotator "NA"]
[PlyCount "55"]
[EventDate "2022.06.05"]
[EventType "swiss"]
[EventRounds "9"]
[EventCountry "GER"]
[SourceTitle "playchess.com"]
[Source "ChessBase"]
[SourceQuality "1"]
[TimeControl "40/4500+30:900+30"]

1. e4 {[%emt 0:00:00]} e5 {[%emt 0:00:00]} 2. Nf3 {[%emt 0:00:00]} Nc6 {[%emt 0:00:00]} 3. Bb5 {[%emt 0:00:00]} Nf6 {[%emt 0:00:00]} 4. d3 {[%emt 0:00:00]} Bc5 {[%emt 0:00:00]} 5. O-O {[%emt 0:00:00]} O-O {[%emt 0:00:00]} 6. Bxc6 {[%emt 0:00:00]} bxc6 {[%emt 0:00:00]} 7. Nxe5 {[%emt 0:00:00]} Bd6 {[%emt 0:00:00]} 8. Nf3 {[%emt 0:00:00]} Qe7 {[%emt 0:00:00]} 9. e5 {[%emt 0:00:00]} Bxe5 {[%emt 0:00:00]} 10. Re1 {[%emt 0:00:00]} Bxh2+ {[%emt 0:00:00]} 11. Nxh2 {[%emt 0:00:00]} Qd6 {[%emt 0:00:00]} 12. Nd2 {[%emt 0:00:00]} Bb7 {[%emt 0:00:00]} 13. Nc4 {[%emt 0:00:00]} Qd5 {[%emt 0:00:00]} 14. Re5 {[%emt 0:00:00]} Qd4 {[%emt 0:00:00]} 15. Be3 {[%emt 0:00:00]} Qh4 {[%emt 0:00:50]} 16. Bg5 {[%emt 0:00:00]} Qd4 {[%emt 0:00:40]} 17. c3 {[%emt 0:00:26]} Qxe5 {[%emt 0:01:55]} 18. Nxe5 {[%emt 0:00:30]} Nd5 {[%emt 0:01:05]} 19. Qg4 {[%emt 0:01:07]} Rfe8 {[%emt 0:02:07]} 20. Bh6 {[%emt 0:01:00]} g6 {[%emt 0:00:12]} 21. d4 {[%emt 0:02:34]} d6 {[%emt 0:00:25]} 22. c4 {[%emt 0:02:53]} Nf6 {[%emt 0:00:39]} 23. Qf3 {[%emt 0:01:51]} Re6 {[%emt 0:00:41]} 24. Nhg4 {[%emt 0:01:23]} Nh5 {[%emt 0:00:25]} 25. Qxf7+ {[%emt 0:00:29]} Kh8 {[%emt 0:00:24]} 26. Qxe6 {[%emt 0:00:20]} Nf4 {[%emt 0:00:51]} 27. Qf6+ {[%emt 0:00:11]} Kg8 {[%emt 0:00:18]} 28. Qg7# {[%emt 0:00:03]} 1-0

[Event "GER-ch Youth-U12 2024"]
[Site "Willingen"]
[Date "2024.05.22"]
[Round "6"]
[White "Moskalenko, Michael"]
[Black "Jahn, Gustav"]
[Result "0-1"]
[ECO "E11"]
[WhiteElo "1574"]
[BlackElo "1755"]
[Annotator "NA RC"]
[PlyCount "64"]
[EventDate "2022.06.05"]
[EventType "swiss"]
[EventRounds "9"]
[EventCountry "GER"]
[SourceTitle "playchess.com"]
[Source "ChessBase"]
[SourceQuality "1"]
[TimeControl "40/4500+30:900+30"]

1. d4 {[%emt 0:00:00]} Nf6 {[%emt 0:00:00]} 2. c4 {[%emt 0:00:00]} e6 {[%emt 0:00:00]} 3. Nf3 {[%emt 0:00:00]} d5 {[%emt 0:00:00]} 4. g3 {[%emt 0:00:00]} Bb4+ {[%emt 0:00:00]} 5. Bd2 {[%emt 0:00:00]} Bxd2+ {[%emt 0:00:00]} 6. Nbxd2 {[%emt 0:00:00]} O-O {[%emt 0:00:00]} 7. Bg2 {[%emt 0:00:00]} Nbd7 {[%emt 0:00:00]} 8. Qc2 {[%emt 0:00:00]} b6 {[%emt 0:00:00]} 9. O-O {[%emt 0:00:00]} Bb7 {[%emt 0:00:00]} 10. Rfd1 {[%emt 0:00:00]} c5 {[%emt 0:00:00]} 11. dxc5 {[%emt 0:00:00]} bxc5 {[%emt 0:00:00]} 12. Rac1 {[%emt 0:00:00]} Qb6 {[%emt 0:00:00]} 13. Nb3 {[%emt 0:10:50]} d4 {[%emt 0:01:05]} 14. Qd2 {[%emt 0:10:14]} e5 {[%emt 0:02:37]} 15. Qg5 {[%emt 0:20:05]} e4 {[%emt 0:05:04]} 16. Ne5 {[%emt 0:03:57]} Nxe5 {[%emt 0:05:32]} 17. Qxe5 {[%emt 0:00:13]} Rac8 {[%emt 0:00:24]} 18. e3 {[%emt 0:09:35]} d3 {[%emt 0:02:31]} 19. Rd2 {[%emt 0:04:48]} Qb4 {[%emt 0:01:39]} 20. h4 {[%emt 0:04:53]} a5 {[%emt 0:00:51]} 21. Rc3 {[%emt 0:06:52]} Rfe8 {[%emt 0:02:45]} 22. Qf5 {[%emt 0:00:38]} Ba6 {[%emt 0:04:01]} 23. a3 {[%emt 0:00:20]} Qb6 {[%emt 0:01:27]} 24. f3 {[%emt 0:02:47]} a4 {[%emt 0:07:54]} 25. Nc1 {[%emt 0:02:26]} Qd6 {[%emt 0:01:22]} 26. Kh2 {[%emt 0:00:50]} g6 {[%emt 0:02:46]} 27. Qh3 {[%emt 0:02:36]} Rc7 {[%emt 0:02:28]} 28. fxe4 {[%emt 0:01:02]} Bc8 {[%emt 0:00:24]} 29. Rcxd3 {[%emt 0:01:32]} Qe5 {[%emt 0:01:23]} 30. Qxc8 {[%emt 0:04:38]} Rcxc8 {[%emt 0:00:42]} 31. Bh3 {[%emt 0:00:20]} Nxe4 {[%emt 0:00:32]} 32. Rd5 {[%emt 0:00:26]} Qxg3+ {[%emt 0:00:21]} 0-1

[Event "GER-ch Youth-U12 2024"]
[Site "Willingen"]
[Date "2024.05.22"]
[Round "6"]
[White "Grabowski, Joshua"]
[Black "König, Lian"]
[Result "1-0"]
[ECO "C90"]
[WhiteElo "1532"]
[BlackElo "1180"]
[Annotator "NA"]
[PlyCount "41"]
[EventDate "2022.06.05"]
[EventType "swiss"]
[EventRounds "9"]
[EventCountry "GER"]
[SourceTitle "playchess.com"]
[Source "ChessBase"]
[SourceQuality "1"]
[TimeControl "40/4500+30:900+30"]

1. e4 {[%emt 0:00:00]} e5 {[%emt 0:00:00]} 2. Nf3 {[%emt 0:00:00]} Nc6 {[%emt 0:00:00]} 3. Bb5 {[%emt 0:00:00]} a6 {[%emt 0:00:00]} 4. Ba4 {[%emt 0:00:00]} b5 {[%emt 0:00:00]} 5. Bb3 {[%emt 0:00:00]} Nf6 {[%emt 0:00:00]} 6. d3 {[%emt 0:00:00]} Be7 {[%emt 0:00:00]} 7. c3 {[%emt 0:00:00]} d6 {[%emt 0:00:00]} 8. O-O {[%emt 0:00:29]} O-O {[%emt 0:00:00]} 9. Re1 {[%emt 0:00:00]} Na5 {[%emt 0:00:00]} 10. Bd5 {[%emt 0:00:00]} Nxd5 {[%emt 0:00:00]} 11. exd5 {[%emt 0:00:00]} Bd7 {[%emt 0:06:58]} 12. b4 {[%emt 0:00:00]} Nb7 {[%emt 0:00:08]} 13. Bb2 {[%emt 0:00:00]} c6 {[%emt 0:04:53]} 14. dxc6 {[%emt 0:00:33]} Bxc6 {[%emt 0:00:10]} 15. c4 {[%emt 0:01:09]} bxc4 {[%emt 0:04:11]} 16. dxc4 {[%emt 0:00:08]} Qd7 {[%emt 0:04:43]} 17. Nc3 {[%emt 0:02:06]} Nd8 {[%emt 0:02:56]} 18. Nd5 {[%emt 0:02:08]} Rb8 {[%emt 0:01:12]} 19. Bc3 {[%emt 0:02:29]} Ne6 {[%emt 0:01:40]} 20. Bxe5 {[%emt 0:04:51]} dxe5 {[%emt 0:14:19]} 21. Nxe5 {[%emt 0:00:59]} 1-0